lending/lending_fUSD_20250819
["ID","MTS","AMOUNT","RATE_DAILY","PERIOD"]
[380277812,1755631136123,-400.0,0.00025739,30]
[380277813,1755631136207,-1249.51,0.00025739,30]
[380277814,1755631136289,-400.0,0.00025739,30]
[380277815,1755631136369,-400.0,0.00025739,30]
[380277816,1755631136450,-557.23,0.00025739,30]
[380277817,1755631136527,-503.04,0.00025739,30]
[380277818,1755631136599,-745.22,0.00025739,30]
[380277819,1755631136671,-804.51,0.00025739,30]
[380277820,1755631136742,-400.0,0.00025739,30]
[380277821,1755631136811,-400.0,0.00025739,30]
[380277822,1755631136884,-466.38,0.00025739,30]
[380277823,1755631136955,-1250.28,0.00025739,30]
[380277824,1755631137031,-866.17,0.00025739,30]
[380277825,1755631137108,-664.23,0.00025739,30]
[380277826,1755631137191,-2158.15,0.00025739,30]
[380277827,1755631137273,-509.99,0.00025739,30]
[380277828,1755631137352,-481.8,0.00025739,30]
[380277829,1755631137430,-528.89450403,0.00025739,30]
[380277830,1755631137514,-162.36734503,0.00025739,30]
[380277831,1755631137595,-400.0,0.00025739,30]
[380277832,1755631137675,-400.0,0.00025739,30]
[380277833,1755631137962,-400.0,0.00025739,30]
[380277834,1755631138066,-400.0,0.00025739,30]
[380277835,1755631138159,-413.19,0.00025739,30]
[380277836,1755631138242,-400.0,0.00025739,30]
[380277837,1755631138330,-400.0,0.00025739,30]
[380277838,1755631138415,-855.55,0.00025739,30]
[380277839,1755631138495,-601.39,0.00025739,30]
[380277840,1755631138575,-400.0,0.00025739,30]
[380277841,1755631138652,-2280.39,0.00025739,30]
[380277842,1755631138724,-975.51,0.00025739,30]
[380277843,1755631138797,-400.0,0.00025739,30]
[380277844,1755631138869,-400.0,0.00025739,30]
[380277845,1755631138941,-1840.1,0.00025739,30]
[380277846,1755631139014,-400.0,0.00025739,30]
[380277847,1755631139091,-517.95,0.00025739,30]
[380277848,1755631139171,-1486.54,0.00025739,30]
[380277849,1755631139248,-2077.7,0.00025739,30]
[380277850,1755631139328,-400.0,0.00025739,30]
[380277851,1755631139412,-2093.14,0.00025739,30]
[380277852,1755631139490,-400.0,0.00025739,30]
[380277853,1755631139567,-790.95,0.00025739,30]
[380277854,1755631139646,-1801.97,0.00025739,30]
[380277855,1755631139720,-962.38,0.00025739,30]
[380277856,1755631139798,-1485.42,0.00025739,30]
[380277857,1755631139874,-400.0,0.00025739,30]
[380277858,1755631139951,-1374.41,0.00025739,30]
[380277859,1755631140027,-400.0,0.00025739,30]
[380277860,1755631140111,-400.0,0.00025739,30]
[380277861,1755631140205,-1008.89,0.00025739,30]
[380277862,1755631140296,-935.31,0.00025739,30]
[380277863,1755631140385,-400.0,0.00025739,30]
[380277864,1755631140468,-734.31,0.00025739,30]
[380277865,1755631140548,-760.31,0.00025739,30]
[380277866,1755631140626,-400.0,0.00025739,30]
[380277867,1755631140707,-543.43,0.00025739,30]
[380277868,1755631140787,-588.82,0.00025739,30]
[380277869,1755631140866,-498.35,0.00025739,30]
[380277870,1755631140946,-400.0,0.00025739,30]
[380277871,1755631141022,-400.0,0.00025739,30]
[380277872,1755631141103,-1209.49,0.00025739,30]
[380277873,1755631141185,-400.0,0.00025739,30]
[380277874,1755631141269,-1158.12,0.00025739,30]
[380277875,1755631141355,-845.97,0.00025739,30]
[380277876,1755631141437,-1453.42,0.00025739,30]
[380277877,1755631141516,-1268.36,0.00025739,30]
[380277878,1755631141593,-400.0,0.00025739,30]
[380277879,1755631141670,-838.71,0.00025739,30]
[380277880,1755631141745,-400.0,0.00025739,30]
[380277881,1755631141821,-553.19,0.00025739,30]
[380277882,1755631141897,-2377.86,0.00025739,30]
[380277883,1755631141975,-656.71,0.00025739,30]
[380277884,1755631142054,-1003.6,0.00025739,30]
[380277885,1755631142136,-575.64,0.00025739,30]
[380277886,1755631142219,-890.27,0.00025739,30]
[380277887,1755631142302,-400.0,0.00025739,30]
[380277888,1755631142387,-400.0,0.00025739,30]
[380277889,1755631142468,-249.45810375,0.00025739,30]
[380277890,1755631142551,-887.1,0.00025739,30]
[380277891,1755631142640,-1586.0,0.00025739,30]
[380277892,1755631142721,-400.0,0.00025739,30]
[380277893,1755631142801,-665.78,0.00025739,30]
[380277894,1755631142884,-400.0,0.00025739,30]
[380277895,1755631142963,-468.86,0.00025739,30]
[380277896,1755631143044,-1245.26,0.00025739,30]
[380277897,1755631143131,-400.0,0.00025739,30]
[380277898,1755631143231,-1571.68,0.00025739,30]
[380277899,1755631143324,-400.0,0.00025739,30]
[380277900,1755631143414,-400.0,0.00025739,30]
[380277901,1755631143503,-400.0,0.00025739,30]
[380277902,1755631143589,-734.99,0.00025739,30]
[380277903,1755631143675,-1550.01,0.00025739,30]
[380277904,1755631143767,-400.0,0.00025739,30]
[380277905,1755631143855,-953.11,0.00025739,30]
[380277906,1755631143940,-486.58,0.00025739,30]
[380277907,1755631144029,-400.0,0.00025739,30]
[380277908,1755631144118,-400.0,0.00025739,30]
[380277909,1755631144212,-987.13,0.00025739,30]
[380277910,1755631144305,-713.66,0.00025739,30]
[380277911,1755631144394,-1769.53,0.00025739,30]
[380277912,1755631144483,-1151.9,0.00025739,30]
[380277913,1755631144569,-1484.23,0.00025739,30]
[380277914,1755631144656,-1462.98,0.00025739,30]
[380277915,1755631144745,-400.0,0.00025739,30]
[380277916,1755631144833,-400.0,0.00025739,30]
[380277917,1755631144922,-584.29,0.00025739,30]
[380277918,1755631145012,-400.0,0.00025739,30]
[380277919,1755631145106,-400.0,0.00025739,30]
[380277920,1755631145194,-1790.8,0.00025739,30]
[380277921,1755631145288,-1524.7,0.00025739,30]
[380277922,1755631145384,-644.07,0.00025739,30]
[380277923,1755631145476,-1873.68,0.00025739,30]
[380277924,1755631145561,-400.0,0.00025739,30]
[380277925,1755631145646,-1158.18,0.00025739,30]
[380277926,1755631145731,-400.0,0.00025739,30]
[380277927,1755631145821,-1809.01,0.00025739,30]
[380277928,1755631145927,-400.0,0.00025739,30]
[380277929,1755631146012,-846.47,0.00025739,30]
[380277930,1755631146106,-490.99,0.00025739,30]
[380277931,1755631146199,-400.0,0.00025739,30]
[380277932,1755631146291,-400.0,0.00025739,30]
[380277933,1755631146386,-1217.18,0.00025739,30]
[380277934,1755631146473,-1996.2,0.00025739,30]
[380277935,1755631146556,-593.75,0.00025739,30]
[380277936,1755631146640,-400.0,0.00025739,30]
[380277937,1755631146721,-861.27,0.00025739,30]
[380277938,1755631146803,-410.72085982,0.00025739,30]
[380277939,1755631146886,-1189.14,0.00025739,30]
[380277940,1755631146968,-400.0,0.00025739,30]
[380277941,1755631147050,-422.52,0.00025739,30]
[380277942,1755631147143,-400.0,0.00025739,30]
[380277943,1755631147231,-831.55,0.00025739,30]
[380277944,1755631147317,-801.03,0.00025739,30]
[380277945,1755631147405,-1627.46,0.00025739,30]
[380277946,1755631147494,-669.09,0.00025739,30]
[380277947,1755631147579,-712.93,0.00025739,30]
[380277948,1755631147662,-400.0,0.00025739,30]
[380277949,1755631147745,-167.63433075,0.00025739,30]
[380277950,1755631147829,-400.0,0.00025739,30]
[380277951,1755631147925,-666.25,0.00025739,30]
[380277952,1755631148026,-739.46,0.00025739,30]
[380277953,1755631148140,-545.28560229,0.00025739,30]
[380277954,1755631148246,-1590.45,0.00025739,30]
[380277955,1755631148353,-575.07,0.00025739,30]
[380277956,1755631148458,-498.22,0.00025739,30]
[380277957,1755631148567,-400.0,0.00025739,30]
[380277958,1755631148677,-400.0,0.00025739,30]
[380277959,1755631148781,-590.81,0.00025739,30]
[380277960,1755631148891,-752.39,0.00025739,30]
[380277961,1755631149006,-463.19,0.00025739,30]
[380277962,1755631149129,-400.0,0.00025739,30]
[380277963,1755631149255,-400.0,0.00025739,30]
[380277964,1755631149380,-400.0,0.00025739,30]
[380277965,1755631149490,-1227.79,0.00025739,30]
[380277966,1755631149597,-400.0,0.00025739,30]
[380277967,1755631149707,-400.0,0.00025739,30]
[380277968,1755631149810,-944.83,0.00025739,30]
[380277969,1755631149910,-400.0,0.00025739,30]
[380277970,1755631150022,-400.0,0.00025739,30]
[380277971,1755631150124,-1252.64,0.00025739,30]
[380277972,1755631150229,-1348.48,0.00025739,30]
[380277973,1755631150328,-2011.64,0.00025739,30]
[380277974,1755631150432,-400.0,0.00025739,30]
[380277975,1755631150538,-771.77,0.00025739,30]
[380277976,1755631150639,-400.0,0.00025739,30]
[380277977,1755631150736,-1004.69,0.00025739,30]
[380277978,1755631150833,-400.0,0.00025739,30]
[380277979,1755631150930,-400.0,0.00025739,30]
[380277980,1755631151027,-759.13,0.00025739,30]
[380277981,1755631151124,-1766.6,0.00025739,30]
[380277982,1755631151223,-764.46,0.00025739,30]
[380277983,1755631151322,-1321.22,0.00025739,30]
[380277984,1755631151416,-400.0,0.00025739,30]
[380277985,1755631151509,-574.26,0.00025739,30]
[380277986,1755631151601,-393.44903843,0.00025739,30]
[380277987,1755631151693,-414.53,0.00025739,30]
[380277988,1755631151796,-1609.98,0.00025739,30]
[380277989,1755631151888,-1988.32,0.00025739,30]
[380277990,1755631151978,-400.0,0.00025739,30]
[380277991,1755631152072,-400.0,0.00025739,30]
[380277992,1755631152167,-400.0,0.00025739,30]
[380277993,1755631152263,-633.22,0.00025739,30]
[380277994,1755631152357,-1129.6,0.00025739,30]
[380277995,1755631152453,-400.0,0.00025739,30]
[380277996,1755631152546,-704.57,0.00025739,30]
[380277997,1755631152645,-1389.72,0.00025739,30]
[380277998,1755631152736,-1626.22,0.00025739,30]
[380277999,1755631152827,-402.52,0.00025739,30]
[380278000,1755631152921,-400.0,0.00025739,30]
[380278001,1755631153012,-758.46,0.00025739,30]
[380278002,1755631153106,-646.97,0.00025739,30]
[380278003,1755631153200,-1978.37,0.00025739,30]
[380278004,1755631153295,-1713.52,0.00025739,30]
[380278005,1755631153395,-988.17,0.00025739,30]
[380278006,1755631153486,-452.3,0.00025739,30]
[380278007,1755631153576,-1178.32,0.00025739,30]
[380278008,1755631153665,-181.70246305,0.00025739,30]
[380278009,1755631153757,-474.04,0.00025739,30]
[380278010,1755631153848,-400.0,0.00025739,30]
[380278011,1755631153938,-400.0,0.00025739,30]
[380278012,1755631154030,-843.54,0.00025739,30]
[380278013,1755631154125,-400.0,0.00025739,30]
[380278014,1755631154228,-2339.85,0.00025739,30]
[380278015,1755631155454,-400.0,0.00025739,30]
[380278016,1755631155645,-1431.42,0.00025739,30]
[380278017,1755631155771,-400.0,0.00025739,30]
[380278018,1755631155860,-1879.73,0.00025739,30]
[380278019,1755631155945,-400.0,0.00025739,30]
[380278020,1755631156031,-400.0,0.00025739,30]
[380278021,1755631156123,-1003.58,0.00025739,30]
[380278022,1755631156234,-667.84,0.00025739,30]
[380278023,1755631156323,-781.97,0.00025739,30]
[380278024,1755631156428,-400.0,0.00025739,30]
[380278025,1755631156520,-657.01,0.00025739,30]
[380278026,1755631156607,-400.0,0.00025739,30]
[380278027,1755631156692,-400.0,0.00025739,30]
[380278028,1755631156778,-1626.0,0.00025739,30]
[380278029,1755631156868,-400.0,0.00025739,30]
[380278030,1755631156954,-762.72,0.00025739,30]
[380278031,1755631157042,-400.0,0.00025739,30]
[380278032,1755631157129,-812.96,0.00025739,30]
[380278033,1755631157217,-812.84,0.00025739,30]
[380278034,1755631157310,-400.0,0.00025739,30]
[380278035,1755631157401,-400.0,0.00025739,30]
[380278036,1755631157487,-400.0,0.00025739,30]
[380278037,1755631157573,-400.0,0.00025739,30]
[380278038,1755631157662,-912.15,0.00025739,30]
[380278039,1755631157747,-1867.16,0.00025739,30]
[380278040,1755631157832,-927.26,0.00025739,30]
[380278041,1755631157916,-400.0,0.00025739,30]
[380278042,1755631158013,-1264.15,0.00025739,30]
[380278043,1755631158120,-1147.83,0.00025739,30]
[380278044,1755631158211,-822.45,0.00025739,30]
[380278045,1755631158303,-2642.11,0.00025739,30]
[380278046,1755631158392,-400.0,0.00025739,30]
[380278047,1755631158480,-437.64,0.00025739,30]
[380278048,1755631158565,-400.0,0.00025739,30]
[380278049,1755631158651,-854.72,0.00025739,30]
[380278050,1755631158740,-400.0,0.00025739,30]
[380278051,1755631158828,-531.2,0.00025739,30]
[380278052,1755631158916,-842.32,0.00025739,30]
[380278053,1755631159002,-1920.95,0.00025739,30]
[380278054,1755631159091,-1843.66,0.00025739,30]
[380278055,1755631159180,-589.48,0.00025739,30]
[380278056,1755631159273,-1357.11,0.00025739,30]
[380278057,1755631159362,-1090.36,0.00025739,30]
[380278058,1755631159448,-400.0,0.00025739,30]
[380278059,1755631159536,-733.36,0.00025739,30]
[380278060,1755631159623,-2339.92,0.00025739,30]
[380278061,1755631159709,-400.0,0.00025739,30]
[380278062,1755631159795,-1713.64,0.00025739,30]
[380278063,1755631159878,-530.76,0.00025739,30]
[380278064,1755631159971,-400.0,0.00025739,30]
[380278065,1755631160066,-400.0,0.00025739,30]
[380278066,1755631160171,-594.02,0.00025739,30]
[380278067,1755631160267,-2161.34,0.00025739,30]
[380278068,1755631160365,-785.37,0.00025739,30]
[380278069,1755631160452,-925.07,0.00025739,30]
[380278070,1755631160538,-400.0,0.00025739,30]
[380278071,1755631160621,-1533.15,0.00025739,30]
[380278072,1755631160704,-1481.14,0.00025739,30]
[380278073,1755631160789,-400.0,0.00025739,30]
[380278074,1755631160869,-400.0,0.00025739,30]
[380278075,1755631160951,-424.97,0.00025739,30]
[380278076,1755631161033,-2049.37,0.00025739,30]
[380278077,1755631161121,-400.0,0.00025739,30]
[380278078,1755631161217,-535.14,0.00025739,30]
[380278079,1755631161376,-2172.05,0.00025739,30]
[380278080,1755631161465,-400.0,0.00025739,30]
[380278081,1755631161555,-1532.6,0.00025739,30]
[380278082,1755631161649,-831.55,0.00025739,30]
[380278083,1755631161742,-853.09,0.00025739,30]
[380278084,1755631161834,-1512.48,0.00025739,30]
[380278085,1755631161929,-400.0,0.00025739,30]
[380278086,1755631162024,-757.23,0.00025739,30]
[380278087,1755631162120,-834.74,0.00025739,30]
[380278088,1755631162222,-528.08,0.00025739,30]
[380278089,1755631162319,-400.0,0.00025739,30]
[380278090,1755631162419,-1466.98,0.00025739,30]
[380278091,1755631162519,-1667.74,0.00025739,30]
[380278092,1755631162616,-851.95,0.00025739,30]
[380278093,1755631162713,-400.0,0.00025739,30]
[380278094,1755631162811,-369.42965832,0.00025739,30]
[380278095,1755631162910,-585.37,0.00025739,30]
[380278096,1755631163009,-1678.23,0.00025739,30]
[380278097,1755631163108,-500.95,0.00025739,30]
[380278098,1755631163209,-400.0,0.00025739,30]
[380278099,1755631163312,-990.17,0.00025739,30]
[380278100,1755631163411,-1498.02,0.00025739,30]
[380278101,1755631163510,-414.92,0.00025739,30]
[380278102,1755631163609,-490.9,0.00025739,30]
[380278103,1755631163708,-837.81,0.00025739,30]
[380278104,1755631163809,-684.54,0.00025739,30]
[380278105,1755631163910,-400.0,0.00025739,30]
[380278106,1755631164011,-916.66,0.00025739,30]
[380278107,1755631164115,-1483.77,0.00025739,30]
[380278108,1755631164219,-2023.25,0.00025739,30]
[380278109,1755631164325,-400.0,0.00025739,30]
[380278110,1755631164430,-827.87,0.00025739,30]
[380278111,1755631164533,-1863.32,0.00025739,30]
[380278112,1755631164637,-1962.6,0.00025739,30]
[380278113,1755631164745,-539.12,0.00025739,30]
[380278114,1755631164861,-1489.75,0.00025739,30]
[380278115,1755631164973,-804.37,0.00025739,30]
[380278116,1755631165096,-1279.96,0.00025739,30]
[380278117,1755631165212,-879.44,0.00025739,30]
[380278118,1755631165345,-400.0,0.00025739,30]
[380278119,1755631165461,-736.46,0.00025739,30]
[380278120,1755631165569,-903.83,0.00025739,30]
[380278121,1755631165676,-3004.1,0.00025739,30]
[380278122,1755631165785,-400.0,0.00025739,30]
[380278123,1755631165899,-540.41,0.00025739,30]
[380278124,1755631166007,-400.0,0.00025739,30]
[380278125,1755631166119,-452.13,0.00025739,30]
[380278126,1755631166230,-768.98,0.00025739,30]
[380278127,1755631166341,-1813.68,0.00025739,30]
[380278128,1755631166452,-400.0,0.00025739,30]
[380278129,1755631166561,-400.0,0.00025739,30]
[380278130,1755631166666,-2223.82,0.00025739,30]
[380278132,1755631166774,-400.0,0.00025739,30]
[380278133,1755631166882,-400.0,0.00025739,30]
[380278134,1755631166984,-762.55,0.00025739,30]
[380278135,1755631167088,-447.68,0.00025739,30]
[380278136,1755631167190,-2258.26,0.00025739,30]
[380278137,1755631167292,-2140.5,0.00025739,30]
[380278138,1755631167394,-400.0,0.00025739,30]
[380278139,1755631167496,-400.0,0.00025739,30]
[380278140,1755631167594,-666.94,0.00025739,30]
[380278141,1755631167690,-400.0,0.00025739,30]
[380278142,1755631167789,-400.0,0.00025739,30]
[380278143,1755631167884,-400.0,0.00025739,30]
[380278144,1755631167980,-699.19,0.00025739,30]
[380278145,1755631168078,-786.12,0.00025739,30]
[380278146,1755631168172,-1078.83,0.00025739,30]
[380278147,1755631168266,-400.0,0.00025739,30]
[380278148,1755631168362,-2272.23,0.00025739,30]
[380278149,1755631168453,-685.74,0.00025739,30]
[380278150,1755631168547,-686.36,0.00025739,30]
[380278151,1755631168639,-1514.98,0.00025739,30]
[380278152,1755631168732,-400.0,0.00025739,30]
[380278153,1755631168823,-400.0,0.00025739,30]
[380278154,1755631168913,-400.0,0.00025739,30]
[380278155,1755631169006,-783.3,0.00025739,30]
[380278156,1755631169100,-927.22,0.00025739,30]
[380278157,1755631169194,-858.73,0.00025739,30]
[380278158,1755631169287,-463.57,0.00025739,30]
[380278159,1755631169381,-638.06,0.00025739,30]
[380278160,1755631169471,-1217.67,0.00025739,30]
[380278161,1755631169562,-1055.26,0.00025739,30]
[380278162,1755631169655,-617.22,0.00025739,30]
[380278163,1755631169746,-654.88,0.00025739,30]
[380278164,1755631169836,-400.0,0.00025739,30]
[380278165,1755631169928,-927.42,0.00025739,30]
[380278166,1755631170021,-877.36,0.00025739,30]
[380278167,1755631170117,-1451.41,0.00025739,30]
[380278168,1755631170213,-774.15,0.00025739,30]
[380278169,1755631170307,-755.17,0.00025739,30]
[380278170,1755631170398,-1269.4,0.00025739,30]
[380278171,1755631170492,-850.21,0.00025739,30]
[380278172,1755631170581,-400.0,0.00025739,30]
[380278173,1755631170670,-1574.07,0.00025739,30]
[380278174,1755631170766,-400.0,0.00025739,30]
[380278175,1755631170865,-400.0,0.00025739,30]
[380278176,1755631170957,-893.8,0.00025739,30]
[380278177,1755631171285,-2151.13,0.00025739,30]
[380278178,1755631171374,-1796.62,0.00025739,30]
[380278179,1755631171460,-400.0,0.00025739,30]
[380278180,1755631171548,-400.0,0.00025739,30]
[380278181,1755631171634,-1524.91,0.00025739,30]
[380278182,1755631171719,-400.0,0.00025739,30]
[380278183,1755631171804,-1268.61,0.00025739,30]
[380278184,1755631171887,-3537.65,0.00025739,30]
[380278185,1755631171970,-400.0,0.00025739,30]
[380278186,1755631172054,-632.78,0.00025739,30]
[380278187,1755631172140,-1091.34,0.00025739,30]
[380278188,1755631172229,-1777.71,0.00025739,30]
[380278189,1755631172328,-1517.91,0.00025739,30]
[380278190,1755631172418,-400.0,0.00025739,30]
[380278191,1755631172508,-400.0,0.00025739,30]
[380278192,1755631172591,-603.15,0.00025739,30]
[380278193,1755631172674,-737.73,0.00025739,30]
[380278194,1755631172756,-759.41,0.00025739,30]
[380278195,1755631172837,-1092.33,0.00025739,30]
[380278196,1755631172921,-2887.56,0.00025739,30]
[380278197,1755631173003,-400.0,0.00025739,30]
[380278198,1755631173090,-1154.89,0.00025739,30]
[380278199,1755631173179,-400.0,0.00025739,30]
[380278200,1755631173272,-400.0,0.00025739,30]
[380278201,1755631173361,-540.17,0.00025739,30]
[380278202,1755631173450,-1604.08,0.00025739,30]
[380278203,1755631173538,-400.0,0.00025739,30]
[380278204,1755631173627,-558.64,0.00025739,30]
[380278205,1755631173715,-464.91,0.00025739,30]
[380278206,1755631173813,-400.0,0.00025739,30]
[380278207,1755631173902,-400.0,0.00025739,30]
[380278208,1755631173992,-996.27,0.00025739,30]
[380278209,1755631174082,-1174.54,0.00025739,30]
[380278210,1755631174172,-400.0,0.00025739,30]
[380278211,1755631174262,-400.0,0.00025739,30]
[380278212,1755631174356,-467.39,0.00025739,30]
[380278213,1755631174448,-1287.79,0.00025739,30]
[380278214,1755631174538,-410.72,0.00025739,30]
[380278215,1755631174628,-645.33,0.00025739,30]
[380278216,1755631174733,-400.0,0.00025739,30]
[380278217,1755631174822,-400.0,0.00025739,30]
[380278218,1755631174911,-400.0,0.00025739,30]
[380278219,1755631174999,-591.41,0.00025739,30]
[380278220,1755631175092,-400.0,0.00025739,30]
[380278221,1755631175182,-1211.51,0.00025739,30]
[380278222,1755631175274,-657.43,0.00025739,30]
[380278223,1755631175363,-1321.19,0.00025739,30]
[380278224,1755631175454,-2333.41,0.00025739,30]
[380278225,1755631175541,-3141.86,0.00025739,30]
[380278226,1755631175625,-441.64,0.00025739,30]
[380278227,1755631175714,-895.33,0.00025739,30]
[380278228,1755631175803,-1312.21,0.00025739,30]
[380278229,1755631175890,-610.43,0.00025739,30]
[380278230,1755631175980,-912.37,0.00025739,30]
[380278231,1755631176069,-5048.43,0.00025739,30]
[380278232,1755631176163,-2777.22,0.00025739,30]
[380278233,1755631176265,-2638.42,0.00025739,30]
[380278234,1755631176363,-542.11,0.00025739,30]
[380278235,1755631176454,-854.75,0.00025739,30]
[380278236,1755631176541,-582.29,0.00025739,30]
[380278237,1755631176626,-2058.34,0.00025739,30]
[380278238,1755631176711,-807.81,0.00025739,30]
[380278239,1755631176795,-2108.39,0.00025739,30]
[380278240,1755631176877,-400.0,0.00025739,30]
[380278241,1755631176963,-3236.93,0.00025739,30]
[380278242,1755631177053,-2755.38,0.00025739,30]
[380278243,1755631177146,-494.07,0.00025739,30]
[380278244,1755631177243,-771.8,0.00025739,30]
[380278245,1755631177342,-1485.66,0.00025739,30]
[380278246,1755631177449,-400.0,0.00025739,30]
[380278247,1755631177538,-1688.58,0.00025739,30]
[380278248,1755631177623,-2731.01,0.00025739,30]
[380278249,1755631177706,-716.5,0.00025739,30]
[380278250,1755631177790,-400.0,0.00025739,30]
[380278251,1755631177872,-1382.11,0.00025739,30]
[380278252,1755631177955,-2951.24,0.00025739,30]
[380278253,1755631178038,-408.32,0.00025739,30]
[380278254,1755631178126,-6757.75,0.00025739,30]
[380278255,1755631178220,-812.97,0.00025739,30]
[380278256,1755631178314,-1007.53,0.00025739,30]
[380278257,1755631178405,-400.0,0.00025739,30]
[380278258,1755631178891,-2420.72,0.00025739,30]
[380278259,1755631178976,-1417.55,0.00025739,30]
[380278260,1755631179063,-632.73,0.00025739,30]
[380278261,1755631179151,-553.64,0.00025739,30]
[380278262,1755631179239,-447.89,0.00025739,30]
[380278263,1755631179326,-744.53,0.00025739,30]
[380278264,1755631179414,-1672.31,0.00025739,30]
[380278265,1755631179497,-1648.48,0.00025739,30]
[380278266,1755631179580,-8716.72,0.00025739,30]
[380278267,1755631179661,-1174.9,0.00025739,30]
[380278268,1755631179742,-1247.73,0.00025739,30]
[380278269,1755631179821,-400.0,0.00025739,30]
[380278270,1755631179913,-2800.23,0.00025739,30]
[380278271,1755631179998,-1855.67,0.00025739,30]
[380278272,1755631180083,-1549.4,0.00025739,30]
[380278273,1755631180172,-2735.6,0.00025739,30]
[380278274,1755631180259,-549.35,0.00025739,30]
[380278275,1755631180349,-1600.8,0.00025739,30]
[380278276,1755631180435,-1083.07,0.00025739,30]
[380278277,1755631180518,-2521.93,0.00025739,30]
[380278278,1755631180598,-407.03,0.00025739,30]
[380278279,1755631180680,-1663.82,0.00025739,30]
[380278280,1755631180763,-1863.39,0.00025739,30]
[380278281,1755631180844,-2006.03,0.00025739,30]
[380278282,1755631180926,-867.04,0.00025739,30]
[380278283,1755631181008,-1558.27,0.00025739,30]
[380278284,1755631181093,-1625.91,0.00025739,30]
[380278285,1755631181178,-3914.85,0.00025739,30]
[380278286,1755631181265,-801.03,0.00025739,30]
[380278287,1755631181354,-1784.81,0.00025739,30]
[380278288,1755631181441,-1785.17,0.00025739,30]
[380278289,1755631181525,-1700.25,0.00025739,30]
[380278290,1755631181607,-834.13,0.00025739,30]
[380278291,1755631181692,-2242.56,0.00025739,30]
[380278292,1755631181776,-1018.63,0.00025739,30]
[380278293,1755631181858,-484.61,0.00025739,30]
[380278294,1755631181940,-400.0,0.00025739,30]
[380278295,1755631182019,-1460.04,0.00025739,30]
[380278296,1755631182100,-801.25,0.00025739,30]
[380278297,1755631182189,-4032.43,0.00025739,30]
[380278298,1755631182276,-2527.74,0.00025739,30]
[380278299,1755631182365,-400.0,0.00025739,30]
[380278300,1755631182452,-1812.27,0.00025739,30]
[380278301,1755631182536,-4275.48,0.00025739,30]
[380278302,1755631182623,-7013.86,0.00025739,30]
[380278303,1755631182707,-434.72,0.00025739,30]
[380278304,1755631182792,-1435.4,0.00025739,30]
[380278305,1755631182880,-1890.92,0.00025739,30]
[380278306,1755631182966,-4142.44,0.00025739,30]
[380278307,1755631183052,-400.0,0.00025739,30]
[380278308,1755631183141,-400.0,0.00025739,30]
[380278309,1755631183245,-1775.43,0.00025739,30]
[380278310,1755631183341,-9303.97,0.00025739,30]
[380278311,1755631183426,-824.79,0.00025739,30]
[380278312,1755631183511,-400.0,0.00025739,30]